bitfinex-derivatives/quotes_BNBF0:USTF0_20250529
["timestamp","ask_amount","ask_price","bid_price","bid_amount"]
[1748514541307,0.29142624,686.28,685.97,0.51]
[1748514541308,1.05113747,686.26,685.97,0.51]
[1748514541508,1.05113747,686.25,685.97,0.51]
[1748514541707,1.05113747,686.24,685.97,0.51]
[1748514542009,1.05113747,686.23,685.97,0.51]
[1748514542208,1.05120272,686.22,685.97,0.51]
[1748514542407,1.05120272,686.21,685.97,0.51]
[1748514542705,1.05120272,686.2,685.97,0.51]
[1748514542908,1.05126424,686.19,685.97,0.51]
[1748514543104,1.05126414,686.18,685.97,0.51]
[1748514543304,0.29142624,686.28,685.97,0.51]
[1748514543305,1.05126414,686.17,685.97,0.51]
[1748514543504,1.05126414,686.16,685.97,0.51]
[1748514543703,1.05126414,686.15,685.97,0.51]
[1748514543904,1.05126414,686.14,685.97,0.51]
[1748514544108,1.05126414,686.13,685.97,0.51]
[1748514544406,0.29142624,686.28,685.97,0.51]
[1748514544709,1.05132156,686.27,685.97,0.51]
[1748514544911,0.29142624,686.28,685.97,0.51]
[1748514545310,1.0513777,686.27,685.97,0.51]
[1748514545511,0.29142624,686.28,685.97,0.51]
[1748514545710,1.05137882,686.27,685.97,0.51]
[1748514545911,0.29142624,686.28,685.97,0.51]
[1748514546111,1.05144462,686.27,685.97,0.51]
[1748514546312,1.05144462,686.26,685.97,0.51]
[1748514546513,1.05144305,686.25,685.97,0.51]
[1748514546807,0.29142624,686.28,685.97,0.51]
[1748514547211,1.05153225,686.27,685.97,0.51]
[1748514547414,1.05153579,686.26,685.97,0.51]
[1748514547610,1.05159903,686.25,685.97,0.51]
[1748514547813,1.05160605,686.24,685.97,0.51]
[1748514548111,1.05160605,686.23,685.97,0.51]
[1748514548310,1.05160605,686.22,685.97,0.51]
[1748514548513,0.29142624,686.28,685.97,0.51]
[1748514549314,1.05089609,686.27,685.97,0.51]
[1748514549515,1.05089609,686.26,685.97,0.51]
[1748514549714,1.05089609,686.25,685.97,0.51]
[1748514549922,0.29142624,686.28,685.97,0.51]
[1748514549923,1.05089609,686.24,685.97,0.51]
[1748514550214,1.05089609,686.23,685.97,0.51]
[1748514550416,1.05102195,686.22,685.97,0.51]
[1748514550711,1.05105823,686.21,685.97,0.51]
[1748514550914,1.05098541,686.2,685.97,0.51]
[1748514551216,1.05098541,686.19,685.97,0.51]
[1748514551415,1.05098541,686.18,685.97,0.51]
[1748514551614,1.05097405,686.17,685.97,0.51]
[1748514551814,0.29142624,686.28,685.97,0.51]
[1748514552013,1.05102047,686.27,685.97,0.51]
[1748514552215,1.05101689,686.26,685.97,0.51]
[1748514552410,0.29142624,686.28,685.97,0.51]
[1748514552613,1.05107446,686.27,685.97,0.51]
[1748514552813,1.05107451,686.26,685.97,0.51]
[1748514553016,1.05107451,686.25,685.97,0.51]
[1748514553318,1.05107451,686.24,685.97,0.51]
[1748514553517,1.05107451,686.23,685.97,0.51]
[1748514553718,1.05107451,686.22,685.97,0.51]
[1748514553919,1.05107451,686.21,685.97,0.51]
[1748514554219,2.10254905,686.2,685.97,0.51]
[1748514554413,1.05127373,686.19,685.97,0.51]
[1748514554615,1.05127373,686.18,685.97,0.51]
[1748514554813,1.05127373,686.17,685.97,0.51]
[1748514555117,1.05127373,686.16,685.97,0.51]
[1748514555413,1.05134131,686.15,685.97,0.51]
[1748514555614,1.05141794,686.14,685.97,0.51]
[1748514555814,1.05141795,686.13,685.97,0.51]
[1748514556013,1.05141795,686.12,685.97,0.51]
[1748514556214,1.05141795,686.11,685.97,0.51]
[1748514556414,1.05141795,686.1,685.97,0.51]
[1748514556619,1.05127532,686.2,685.97,0.51]
[1748514556814,1.05142245,686.19,685.97,0.51]
[1748514557018,1.05142245,686.18,685.97,0.51]
[1748514557217,1.05142245,686.17,685.97,0.51]
[1748514557416,1.05153369,686.16,685.97,0.51]
[1748514557615,1.05153369,686.15,685.97,0.51]
[1748514557819,1.05127532,686.2,685.97,0.51]
[1748514557820,1.05153369,686.14,685.97,0.51]
[1748514558016,1.05153369,686.13,685.97,0.51]
[1748514558218,1.05127532,686.2,685.97,0.51]
[1748514558219,1.05168103,686.12,685.97,0.51]
[1748514558420,1.05168103,686.11,685.97,0.51]
[1748514558615,1.05127532,686.2,685.97,0.51]
[1748514558616,1.05168103,686.1,685.97,0.51]
[1748514558822,1.05193815,686.09,685.97,0.51]
[1748514559021,1.05193815,686.08,685.97,0.51]
[1748514559222,1.05193972,686.07,685.97,0.51]
[1748514559417,1.05193972,686.06,685.97,0.51]
[1748514559620,1.05193504,686.05,685.97,0.51]
[1748514559822,1.05193517,686.04,685.97,0.51]
[1748514560015,1.05193624,686.03,685.97,0.51]
[1748514560220,1.05193624,686.02,685.97,0.51]
[1748514560420,1.05193624,686.01,685.97,0.51]
[1748514560619,1.05193624,686.0,685.97,0.51]
[1748514560821,1.0519409,685.99,685.97,0.51]
[1748514561020,1.0519409,685.98,685.97,0.51]
[1748514561220,1.05127532,686.2,685.97,0.51]
[1748514561721,1.05194453,686.19,685.97,0.51]
[1748514561924,1.05194569,686.18,685.97,0.51]
[1748514562125,1.05194569,686.17,685.97,0.51]
[1748514562426,1.05127532,686.2,685.97,0.51]
[1748514562427,1.05194569,686.16,685.97,0.51]
[1748514562620,1.05194569,686.15,685.97,0.51]
[1748514562922,1.05194354,686.14,685.97,0.51]
[1748514563221,1.05194354,686.13,685.97,0.51]
[1748514563425,1.05194644,686.12,685.97,0.51]
[1748514563625,1.05194644,686.11,685.97,0.51]
[1748514563830,1.05194644,686.1,685.97,0.51]
[1748514564026,1.05194644,686.09,685.97,0.51]
[1748514564226,1.05194644,686.08,685.97,0.51]
[1748514564428,1.05191378,686.07,685.97,0.51]
[1748514564628,1.05191378,686.06,685.97,0.51]
[1748514564924,1.05190891,686.05,685.97,0.51]
[1748514565124,1.05190891,686.04,685.97,0.51]
[1748514565329,1.05190891,686.03,685.97,0.51]
[1748514565623,1.05191078,686.02,685.97,0.51]
[1748514565929,1.05191078,686.01,685.97,0.51]
[1748514566123,1.05191078,686.0,685.97,0.51]
[1748514566328,1.05194185,685.99,685.97,0.51]
[1748514566525,1.05194185,685.98,685.97,0.51]
[1748514566729,1.05127532,686.2,685.97,0.51]
[1748514567025,1.05194069,686.19,685.97,0.51]
[1748514567330,1.05194069,686.18,685.97,0.51]
[1748514567628,1.05194069,686.17,685.97,0.51]
[1748514567829,1.05194069,686.16,685.97,0.51]
[1748514568129,1.05194003,686.15,685.97,0.51]
[1748514568329,1.05127532,686.2,685.97,0.51]
[1748514568532,1.05193674,686.19,685.97,0.51]
[1748514568830,1.05193679,686.18,685.97,0.51]
[1748514569126,1.05190413,686.17,685.97,0.51]
[1748514569427,1.05190413,686.16,685.97,0.51]
[1748514569630,1.05190413,686.15,685.97,0.51]
[1748514569831,1.05190198,686.14,685.97,0.51]
[1748514570130,1.05127532,686.2,685.97,0.51]
[1748514570131,1.05190198,686.13,685.97,0.51]
[1748514570426,1.05190198,686.12,685.97,0.51]
[1748514570631,1.05127532,686.2,685.97,0.51]
[1748514570830,1.05193211,686.19,685.97,0.51]
[1748514571031,1.05193325,686.18,685.97,0.51]
[1748514571231,1.05193325,686.17,685.97,0.51]
[1748514571432,1.05193325,686.16,685.97,0.51]
[1748514571626,1.05193325,686.15,685.97,0.51]
[1748514571826,1.05193325,686.14,685.97,0.51]
[1748514572026,1.05193325,686.13,685.97,0.51]
[1748514572228,1.05127532,686.2,685.97,0.51]
[1748514572229,1.05193166,686.12,685.97,0.51]
[1748514572532,1.05127532,686.2,685.91,0.634]
[1748514573734,1.05193377,686.19,685.91,0.634]
[1748514574030,1.05127532,686.2,685.91,0.634]
[1748514574934,1.05192918,686.19,685.91,0.634]
[1748514575233,1.05192918,686.18,685.92,0.713]
[1748514575432,1.05193023,686.17,685.92,0.713]
[1748514575635,1.05193023,686.16,685.92,0.713]
[1748514575935,1.05193023,686.15,685.92,0.713]
[1748514576229,1.05192462,686.14,685.92,0.713]
[1748514576435,1.0519245,686.13,685.92,0.713]
[1748514576635,1.05192282,686.12,685.92,0.713]
[1748514576937,1.05192285,686.11,685.92,0.713]
[1748514577131,1.05127532,686.2,685.92,0.713]
[1748514578338,1.05189713,686.19,685.92,0.713]
[1748514578638,1.05189372,686.18,685.92,0.713]
[1748514578832,1.05127532,686.2,685.92,0.713]
[1748514579039,1.05189343,686.19,685.92,0.713]
[1748514579234,1.05189343,686.18,685.92,0.713]
[1748514579440,1.05127532,686.2,685.92,0.713]
[1748514579639,1.05189446,686.19,685.92,0.713]
[1748514579935,1.05189446,686.18,685.92,0.713]
[1748514580134,1.05189446,686.17,685.92,0.713]
[1748514580336,1.05189138,686.16,685.92,0.713]
[1748514580536,1.05127532,686.2,685.92,0.713]
[1748514582042,1.05189226,686.19,685.92,0.713]
[1748514582242,1.05189226,686.18,685.92,0.713]
[1748514582439,1.05189226,686.17,685.92,0.713]
[1748514582635,1.05189264,686.16,685.92,0.713]
[1748514582841,1.05189264,686.15,685.92,0.713]
[1748514583043,1.05189342,686.14,685.92,0.713]
[1748514583241,1.05189342,686.13,685.92,0.713]
[1748514583441,1.05189342,686.12,685.92,0.713]
[1748514583639,1.05189445,686.11,685.92,0.713]
[1748514583840,1.05189445,686.1,685.92,0.713]
[1748514584041,1.05189445,686.09,685.92,0.713]
[1748514584242,1.05189047,686.08,685.92,0.713]
[1748514584445,1.05189228,686.07,685.92,0.713]
[1748514584641,1.0518893,686.06,685.92,0.713]
[1748514584844,1.0518893,686.05,685.92,0.713]
[1748514585042,1.05127532,686.2,685.92,0.713]
[1748514585245,1.05188965,686.19,685.92,0.713]
[1748514585541,1.05127532,686.2,685.92,0.713]
[1748514586643,1.05188882,686.19,685.92,0.713]
[1748514586843,1.05127532,686.2,685.92,0.713]
[1748514587047,1.05188582,686.19,685.92,0.713]
[1748514587243,1.05127532,686.2,685.92,0.713]
[1748514587948,1.05188266,686.19,685.92,0.713]
[1748514588144,1.05188273,686.18,685.92,0.713]
[1748514588349,1.05127532,686.2,685.92,0.713]
[1748514588849,1.05191417,686.19,685.92,0.713]
[1748514589047,1.05127532,686.2,685.92,0.713]
[1748514589551,1.05191417,686.19,685.92,0.713]
[1748514589751,1.05127532,686.2,685.92,0.713]
[1748514590347,1.05191195,686.19,685.92,0.713]
[1748514590651,1.05191859,686.18,685.92,0.713]
[1748514590845,1.05127532,686.2,685.92,0.713]
[1748514591244,1.05191876,686.19,685.92,0.713]
[1748514591447,1.05127532,686.2,685.92,0.713]
[1748514592446,1.05193214,686.19,685.92,0.713]
[1748514592652,1.05193086,686.18,685.92,0.713]
[1748514592851,1.05127532,686.2,685.92,0.713]
[1748514593648,1.05193284,686.19,685.92,0.713]
[1748514593848,1.05127532,686.2,685.92,0.713]
[1748514594053,1.05194007,686.19,685.92,0.713]
[1748514594352,1.05127532,686.2,685.92,0.713]
[1748514595153,1.05194976,686.19,685.92,0.713]
[1748514595353,1.05127532,686.2,685.92,0.713]
[1748514595550,1.0519528,686.19,685.92,0.713]
[1748514595849,1.05127532,686.2,685.92,0.713]
[1748514596356,1.05195067,686.19,685.92,0.713]
[1748514596655,1.05195067,686.18,685.92,0.713]
[1748514596848,1.05195067,686.19,685.92,0.713]
[1748514599651,1.05196743,686.18,685.92,0.713]
[1748514599854,1.05195067,686.19,685.92,0.713]
[1748514600055,1.05196938,686.18,685.92,0.713]
[1748514600354,1.05195067,686.19,685.92,0.713]
[1748514602555,1.05162708,686.18,685.92,0.713]
[1748514602854,1.05162956,686.17,685.92,0.713]
[1748514603056,1.05195067,686.19,685.92,0.713]
[1748514604054,1.05165061,686.18,685.92,0.713]
[1748514604254,1.05165203,686.17,685.92,0.713]
[1748514604449,1.05195067,686.19,685.92,0.713]
[1748514605055,1.05195067,686.19,685.91,0.634]
[1748514605457,1.05165214,686.18,685.91,0.634]
[1748514605654,1.05195067,686.19,685.91,0.634]
[1748514605952,1.05165294,686.18,685.91,0.634]
[1748514606153,1.05165294,686.17,685.91,0.634]
[1748514606351,1.05195067,686.19,685.91,0.634]
[1748514607555,1.05165013,686.18,685.92,0.536]
[1748514607758,1.05165013,686.17,685.92,0.536]
[1748514607956,1.05165013,686.16,685.92,0.536]
[1748514608159,1.05164858,686.15,685.92,0.536]
[1748514608362,1.05164848,686.14,685.92,0.536]
[1748514608662,1.05164592,686.13,685.92,0.536]
[1748514608859,1.05165113,686.12,685.92,0.536]
[1748514609161,1.05165113,686.11,685.92,0.536]
[1748514609462,1.05165113,686.1,685.92,0.536]
[1748514609660,1.05165113,686.09,685.92,0.536]
[1748514609856,1.05165113,686.08,685.92,0.536]
[1748514610058,1.05164498,686.07,685.92,0.536]
[1748514610261,1.05164319,686.06,685.92,0.536]
[1748514610462,1.05164319,686.05,685.92,0.536]
[1748514610664,1.05195067,686.19,685.92,0.536]
[1748514611463,1.05163948,686.18,685.92,0.536]
[1748514611661,1.05195067,686.19,685.92,0.536]
[1748514612063,1.05163718,686.18,685.92,0.536]
[1748514612263,1.05195067,686.19,685.92,0.536]
[1748514612463,1.05163873,686.18,685.92,0.536]
[1748514612664,1.05195067,686.19,685.92,0.536]
[1748514613366,1.05163593,686.18,685.92,0.536]
[1748514613566,1.05163564,686.17,685.92,0.536]
[1748514613868,1.05195067,686.19,685.92,0.536]
[1748514614367,1.0516372,686.18,685.92,0.536]
[1748514614568,1.0516372,686.17,685.92,0.536]
[1748514614764,1.0516372,686.16,685.92,0.536]
[1748514614965,1.0516372,686.15,685.92,0.536]
[1748514615168,1.05163738,686.14,685.92,0.536]
[1748514615468,1.05163827,686.13,685.92,0.536]
[1748514615767,1.05163468,686.12,685.92,0.536]
[1748514616066,1.05163452,686.11,685.93,0.611]
[1748514616266,1.05163452,686.1,685.93,0.611]
[1748514616467,1.05163452,686.09,685.93,0.611]
[1748514616666,1.05163452,686.08,685.93,0.611]
[1748514616867,1.05163452,686.07,685.93,0.611]
[1748514617062,1.05163452,686.06,685.93,0.611]
[1748514617371,1.05163452,686.05,685.93,0.611]
[1748514617567,1.05132198,686.04,685.93,0.611]
[1748514617763,1.05132198,686.03,685.93,0.611]
[1748514617971,1.05132198,686.02,685.93,0.611]
[1748514618171,1.05132198,686.01,685.93,0.611]
[1748514618369,1.05131852,686.0,685.93,0.611]
[1748514618570,1.05131852,685.99,685.93,0.611]
[1748514618770,1.05131852,685.98,685.93,0.611]
[1748514618969,1.05131668,685.97,685.93,0.611]
[1748514619174,1.05131694,685.96,685.93,0.611]
[1748514619476,1.05131934,685.95,685.93,0.611]
[1748514619674,1.05131934,685.94,685.93,0.611]
[1748514620470,1.05132427,685.94,685.93,0.611]
[1748514620975,1.05195067,686.19,685.93,0.611]
[1748514621175,1.0513238,686.18,685.93,0.611]
[1748514621375,1.0513238,686.17,685.93,0.611]
[1748514621575,1.0513238,686.16,685.93,0.611]
[1748514621777,1.0513238,686.15,685.93,0.611]
[1748514621977,1.0513238,686.14,685.93,0.611]
[1748514622178,1.05132547,686.13,685.93,0.611]
[1748514622477,1.05132547,686.12,685.93,0.611]
[1748514622679,1.04839933,686.11,685.93,0.611]
[1748514622878,1.04839749,686.1,685.93,0.611]
[1748514623076,1.04839749,686.09,685.93,0.611]
[1748514623278,1.04839709,686.08,685.93,0.611]
[1748514623478,1.04839709,686.07,685.93,0.611]
[1748514623680,1.04839709,686.06,685.93,0.611]
[1748514623975,1.04839709,686.05,685.93,0.611]
[1748514624176,1.04840398,686.04,685.93,0.611]
[1748514624380,1.04840398,686.03,685.93,0.611]
[1748514624581,1.04840437,686.02,685.93,0.611]
[1748514624781,1.04840306,686.01,685.93,0.611]
[1748514624982,1.0484019,686.0,685.93,0.611]
[1748514625177,1.0484019,685.99,685.93,0.611]
[1748514625378,1.0484019,685.98,685.93,0.611]
[1748514625582,1.0484019,685.97,685.93,0.611]
[1748514625781,1.05195067,686.19,685.93,0.611]
[1748514625782,1.04840078,685.96,685.93,0.611]
[1748514625976,1.04840078,685.95,685.93,0.611]
[1748514626185,1.04840078,685.94,685.93,0.611]
[1748514626484,1.04840184,685.94,685.93,0.611]
[1748514627179,1.02536336,685.94,685.93,0.611]
[1748514627781,1.0248102,685.94,685.93,0.611]
[1748514627986,1.02481008,685.94,685.93,0.611]
[1748514628181,1.02481109,685.94,685.93,0.611]
[1748514628384,1.02481123,685.94,685.93,0.611]
[1748514628681,1.05195067,686.19,685.93,0.611]
[1748514629084,1.02481588,686.18,685.93,0.611]
[1748514629286,1.05195067,686.19,685.93,0.611]
[1748514629487,1.02481589,686.18,685.93,0.611]
[1748514629687,1.05195067,686.19,685.93,0.611]
[1748514630485,1.02460092,686.18,685.93,0.611]
[1748514630680,1.02460889,686.17,685.93,0.611]
[1748514630882,1.05195067,686.19,685.93,0.611]
[1748514631183,1.02460939,686.18,685.93,0.611]
[1748514631384,1.02460939,686.17,685.93,0.611]
[1748514631587,1.02460939,686.16,685.93,0.611]
[1748514631882,1.02461842,686.15,685.93,0.611]
[1748514632084,1.02461842,686.14,685.93,0.611]
[1748514632288,1.02461842,686.13,685.93,0.611]
[1748514632485,1.02461842,686.12,685.93,0.611]
[1748514632686,1.02457547,686.11,685.93,0.611]
[1748514632886,1.02457547,686.1,685.93,0.611]
[1748514633084,1.05195067,686.19,685.93,0.611]
[1748514633283,1.02432614,686.18,685.93,0.611]
[1748514633488,1.02430864,686.17,685.93,0.611]
[1748514633690,1.02430864,686.16,685.93,0.611]
[1748514633886,1.02430864,686.15,685.93,0.611]
[1748514634093,1.02430864,686.14,685.93,0.611]
[1748514634290,1.0243052,686.13,685.93,0.611]
[1748514634488,1.0243052,686.12,685.93,0.611]
[1748514634689,1.0243052,686.11,685.93,0.611]
[1748514634892,1.0243052,686.1,685.93,0.611]
[1748514635088,1.0243052,686.09,685.93,0.611]
[1748514635290,1.02433958,686.08,685.93,0.611]
[1748514635488,1.02432249,686.07,685.93,0.611]
[1748514635688,1.05195067,686.19,685.93,0.611]
[1748514635892,1.02432259,686.18,685.93,0.611]
[1748514636192,1.02432119,686.17,685.93,0.611]
[1748514636388,1.02432119,686.16,685.93,0.611]
[1748514636594,1.02437862,686.15,685.93,0.611]
[1748514636789,1.02438175,686.14,685.93,0.611]
[1748514636993,1.02438175,686.13,685.93,0.611]
[1748514637295,1.05195067,686.19,685.93,0.611]
[1748514637591,1.02438108,686.18,685.93,0.611]
[1748514637894,1.05195067,686.19,685.93,0.611]
[1748514638488,1.02437585,686.18,685.93,0.611]
[1748514638690,1.05195067,686.19,685.93,0.611]
[1748514639395,1.02437778,686.18,685.93,0.611]
[1748514639591,1.02438013,686.17,685.93,0.611]
[1748514639790,1.05195067,686.19,685.93,0.611]
[1748514639791,1.02437798,686.16,685.93,0.611]
[1748514639996,1.02437798,686.15,685.93,0.611]
[1748514640196,1.02437798,686.14,685.93,0.611]
[1748514640397,1.02437645,686.13,685.93,0.611]
[1748514640695,1.02437645,686.12,685.93,0.611]
[1748514640891,1.02437645,686.11,685.93,0.611]
[1748514641191,1.02437645,686.1,685.93,0.611]
[1748514641493,1.02437645,686.09,685.93,0.611]
[1748514641697,1.02437645,686.08,685.93,0.611]
[1748514641898,1.02437645,686.07,685.93,0.611]
[1748514642195,1.02438007,686.06,685.93,0.611]
[1748514642397,1.02438007,686.05,685.93,0.611]
[1748514642598,1.02438007,686.04,685.93,0.611]
[1748514642794,1.02438007,686.03,685.93,0.611]
[1748514642999,1.02438007,686.02,685.93,0.611]
[1748514643198,1.02437574,686.01,685.93,0.611]
[1748514643401,1.02437574,686.0,685.93,0.611]
[1748514643694,1.02437723,685.99,685.93,0.611]
[1748514643900,1.02437723,685.98,685.93,0.611]
[1748514644197,1.02474874,685.97,685.93,0.611]
[1748514644495,1.02474815,685.96,685.93,0.611]
[1748514644703,1.02474777,685.95,685.93,0.611]
[1748514644898,1.02474777,685.94,685.93,0.611]
[1748514645800,1.02498228,685.94,685.93,0.611]
[1748514646095,1.05195067,686.19,685.93,0.611]
[1748514646296,1.02496635,686.18,685.93,0.611]
[1748514646496,1.05195067,686.19,685.93,0.611]
[1748514646893,1.02496615,686.18,685.93,0.611]
[1748514647099,1.05195067,686.19,685.93,0.611]
[1748514647900,1.02496835,686.18,685.93,0.611]
[1748514648093,1.02497174,686.17,685.93,0.611]
[1748514648294,1.05195067,686.19,685.93,0.611]
[1748514648494,1.02497174,686.18,685.93,0.611]
[1748514648801,1.02497174,686.17,685.93,0.611]
[1748514648995,1.02497174,686.16,685.93,0.611]
[1748514649199,1.02497174,686.15,685.93,0.611]
[1748514649395,1.02494575,686.14,685.93,0.611]
[1748514649599,1.02494575,686.13,685.93,0.611]
[1748514649803,1.05195067,686.19,685.93,0.611]
[1748514649804,1.02494575,686.12,685.93,0.611]
[1748514650096,1.02494575,686.11,685.93,0.611]
[1748514650301,1.02494575,686.1,685.93,0.611]
[1748514650502,1.02493087,686.09,685.93,0.611]
[1748514650703,1.05195067,686.19,685.93,0.611]
[1748514651105,1.02492184,686.18,685.93,0.611]
[1748514651299,1.02489662,686.17,685.93,0.611]
[1748514651502,1.05195067,686.19,685.93,0.611]
[1748514651503,1.02489662,686.16,685.93,0.611]
[1748514651698,1.02489664,686.15,685.93,0.611]
[1748514651903,1.02489664,686.14,685.93,0.611]
[1748514652100,1.02489664,686.13,685.93,0.611]
[1748514652405,1.02489664,686.12,685.93,0.611]
[1748514652603,1.02489664,686.11,685.93,0.611]
[1748514652807,1.02489664,686.1,685.93,0.611]
[1748514653008,1.02487859,686.09,685.93,0.611]
[1748514653208,1.02487859,686.08,685.93,0.611]
[1748514653409,1.0248721,686.07,685.93,0.611]
[1748514653606,1.02487278,686.06,685.93,0.611]
[1748514653811,1.02487278,686.05,685.93,0.611]
[1748514654007,1.02487278,686.04,685.93,0.611]
[1748514654308,1.02486344,686.03,685.93,0.611]
[1748514654513,1.02486344,686.02,685.93,0.611]
[1748514654713,1.02486344,686.01,685.93,0.611]
[1748514654914,1.02485004,686.0,685.93,0.611]
[1748514655214,1.05195067,686.19,685.93,0.611]
[1748514655612,1.02484057,686.18,685.93,0.611]
[1748514655810,1.02484057,686.17,685.93,0.611]
[1748514656015,1.024835,686.16,685.93,0.611]
[1748514656310,1.024835,686.15,685.93,0.611]
[1748514656513,1.024835,686.14,685.93,0.611]
[1748514656709,1.024835,686.13,685.93,0.611]
[1748514657012,1.02484492,686.12,685.93,0.611]
[1748514657214,1.02484492,686.11,685.93,0.611]
[1748514657414,1.02484492,686.1,685.93,0.611]
[1748514657616,1.05195067,686.19,685.93,0.611]
[1748514657816,1.02481573,686.18,685.93,0.611]
[1748514658017,1.02481573,686.17,685.93,0.611]
[1748514658210,1.05195067,686.19,685.93,0.611]
[1748514658414,1.02479673,686.18,685.93,0.611]
[1748514658611,1.02480106,686.17,685.93,0.611]
[1748514658815,1.02480106,686.16,685.93,0.611]
[1748514659015,1.05195067,686.19,685.93,0.611]
[1748514659016,1.02480048,686.15,685.93,0.611]
[1748514659312,1.02480048,686.14,685.93,0.611]
[1748514659510,1.02480048,686.13,685.93,0.611]
[1748514659717,1.02479307,686.12,685.93,0.611]
[1748514660019,1.02479382,686.11,685.93,0.611]
[1748514660317,1.02479382,686.1,685.93,0.611]
[1748514660513,1.05195067,686.19,685.93,0.611]
[1748514661214,1.02475463,686.18,685.93,0.611]
[1748514661519,1.05195067,686.19,685.93,0.611]
[1748514661717,1.02476055,686.18,685.93,0.611]
[1748514661920,1.02475529,686.17,685.93,0.611]
[1748514662213,1.02475521,686.16,685.93,0.611]
[1748514662418,1.02475521,686.15,685.93,0.611]
[1748514662614,1.02469151,686.14,685.93,0.611]
[1748514662816,1.02469151,686.13,685.93,0.611]
[1748514663016,1.05195067,686.19,685.93,0.611]
[1748514663514,1.02469139,686.18,685.93,0.611]
[1748514663812,1.05195067,686.19,685.93,0.611]
[1748514664918,1.02468991,686.18,685.93,0.611]
[1748514665125,1.05195067,686.19,685.93,0.611]
[1748514665613,1.02469261,686.18,685.93,0.611]
[1748514665816,1.05195067,686.19,685.93,0.611]
[1748514666319,1.02469261,686.18,685.93,0.611]
[1748514666512,1.02469261,686.17,685.93,0.611]
[1748514666819,1.02469261,686.18,685.93,0.611]
[1748514667718,1.0246933,686.17,685.93,0.611]
[1748514667914,1.02469261,686.18,685.93,0.611]
[1748514669121,1.02469032,686.17,685.93,0.611]
[1748514669316,1.02469032,686.16,685.93,0.611]
[1748514669517,1.02469032,686.15,685.93,0.611]
[1748514669717,1.02463473,686.14,685.93,0.611]
[1748514669921,1.02463473,686.13,685.93,0.611]
[1748514670221,1.02469261,686.18,685.93,0.611]
[1748514670821,1.02463638,686.17,685.93,0.611]
[1748514671021,1.02469261,686.18,685.93,0.611]
[1748514671420,1.02463746,686.17,685.93,0.611]
[1748514671622,1.02469261,686.18,685.93,0.611]
[1748514672223,1.02463758,686.17,685.93,0.611]
[1748514672418,1.02463758,686.16,685.93,0.611]
[1748514672621,1.02469261,686.18,685.93,0.611]
[1748514673017,1.02463732,686.17,685.93,0.611]
[1748514673223,1.02463732,686.16,685.93,0.611]
[1748514673418,1.02459861,686.15,685.93,0.611]
[1748514673616,1.02469261,686.18,685.93,0.611]
[1748514673617,1.02459861,686.14,685.93,0.611]
[1748514673818,1.02459861,686.13,685.93,0.611]
[1748514674017,1.02460228,686.12,685.68,0.738]
[1748514674222,1.02460228,686.11,685.69,0.5705551]
[1748514674423,1.02460228,686.1,685.7,0.5705551]
[1748514674622,1.02460228,686.09,685.71,0.5705551]
[1748514674824,1.02460228,686.08,685.72,0.5705551]
[1748514675121,1.02469261,686.18,685.68,0.738]
[1748514675319,1.02457398,686.17,685.69,0.57054058]
[1748514675519,1.02460206,686.16,685.7,0.57053902]
[1748514675718,1.02457761,686.15,685.71,0.57052543]
[1748514675924,1.02457921,686.14,685.72,0.57052488]
[1748514676120,1.02457921,686.13,685.73,0.57052521]
[1748514676324,1.02457921,686.12,685.74,0.57052521]